fUSD/lending_fUSD_20250629
["ID","MTS","AMOUNT","RATE_DAILY","PERIOD"]
[368410838,1751166640746,-150.0,0.00029078,2]
[368410840,1751166640755,-150.0,0.00029078,2]
[368410843,1751166640764,-171.21,0.00029078,2]
[368410846,1751166640773,-355.6,0.00029078,2]
[368410848,1751166640782,-150.0,0.00029078,2]
[368410851,1751166640795,-150.0,0.00029078,2]
[368410854,1751166640804,-170.89,0.00029078,2]
[368410857,1751166640813,-150.0,0.00029078,2]
[368410859,1751166640823,-355.6,0.00029078,2]
[368410862,1751166640831,-163.85,0.00029078,2]
[368410863,1751166640840,-180.250152,0.00029231,8]
[368410865,1751166640849,-152.0,0.00029245,3]
[368410867,1751166640858,-165.22,0.00029274,2]
[368410868,1751166640867,-756.69,0.00029315,2]
[368410870,1751166640877,-207.0,0.000294,30]
[368410872,1751166640886,-799.39,0.00029589,2]
[368410873,1751166640894,-799.39,0.00029589,2]
[368410875,1751166640903,-799.39,0.00029589,2]
[368410876,1751166640913,-150.0,0.00029589,2]
[368410878,1751166640922,-455.96,0.00029589,2]
[368410880,1751166640932,-171.09,0.00029589,2]
[368410881,1751166640941,-150.0,0.00029589,2]
[368410882,1751166640950,-150.6,0.00029652,2]
[368410883,1751166640959,-207.4,0.00029692,2]
[368410884,1751166640969,-5286.91373261,0.00029779,2]
[368411520,1751166646534,-150.0,0.00028978,2]
[368411522,1751166646544,-355.6,0.00028978,2]
[368411524,1751166646553,-330.86,0.00029589,2]
[368411526,1751166646563,-12028.883028,0.00029779,2]
[368411528,1751166646575,-1253.16000232,0.00029779,2]
[368411531,1751166646587,-370.51679988,0.00029779,2]
[368411533,1751166646598,-456.4445,0.00029779,2]
[368411535,1751166646610,-325.26003264,0.00029779,2]
[368411537,1751166646621,-346.01790543,0.00029779,2]
[368412356,1751166801935,1011.23,0.00027397,120]
[368412385,1751167506282,250.0,0.00015,2]
[368412386,1751167594063,154.01,0.00013699,2]
[368412388,1751167629498,4754.40515616,0.00016435,2]
[368412389,1751167629520,8000.0,0.00016435,2]
[368412390,1751167629541,8000.0,0.00016435,2]
[368412391,1751167629563,8000.0,0.00016435,2]
[368412392,1751167629583,1679.92308866,0.00016435,2]
[368412393,1751167680115,6320.07691134,0.00014,2]
[368412394,1751167680136,8000.0,0.00014,2]
[368412395,1751167680157,8000.0,0.00014,2]
[368412396,1751167680177,8000.0,0.00014,2]
[368412397,1751167680198,8000.0,0.00014,2]
[368412398,1751167680218,8000.0,0.00014,2]
[368412399,1751167680239,8000.0,0.00014,2]
[368412400,1751167680260,8000.0,0.00014,2]
[368412401,1751167680281,8000.0,0.00014,2]
[368412402,1751167680306,7182.42596553,0.00014,2]
[368412476,1751167832602,-513.9212907,0.000199,2]
[368412479,1751167832625,-85.31350915,0.000199,2]
[368412481,1751167832635,-1003.23375352,0.00019999,2]
[368412483,1751167832644,-300.0,0.00019999,2]
[368412485,1751167832653,-1200.0,0.00019999,2]
[368412487,1751167832662,-40422.24986733,0.0002,4]
[368412493,1751167832707,-8208.63331433,0.0002,4]
[368412499,1751167832751,-832.83499712,0.0002,4]
[368412728,1751167837603,-889.32914072,0.0002,4]
[368412729,1751167837613,-611.7902409,0.00021881,2]
[368412730,1751167837764,-988.2097591,0.00021881,2]
[368412731,1751167837774,-154.01,0.00021918,2]
[368412732,1751167837783,-206.0,0.0002398,2]
[368412733,1751167837792,-205.0,0.0002398,2]
[368412734,1751167837801,-185.0,0.00024556,3]
[368412735,1751167837812,-1000.0,0.000274,30]
[368412736,1751167837822,-500.0,0.000274,14]
[368412737,1751167837832,-500.0,0.000274,14]
[368412738,1751167837842,-500.0,0.000274,7]
[368412739,1751167837852,-500.0,0.000274,7]
[368412740,1751167837861,-500.0,0.000274,2]
[368412741,1751167837872,-500.0,0.000274,2]
[368412743,1751167837881,-500.0,0.000274,10]
[368412745,1751167837891,-500.0,0.000274,10]
[368412747,1751167837900,-500.0,0.000274,2]
[368412749,1751167837909,-1167.45,0.00028354,2]
[368412751,1751167837918,-199.22,0.00028359,120]
[368412753,1751167837928,-168.76,0.00028419,2]
[368412755,1751167837937,-151.67,0.00028438,2]
[368412756,1751167837946,-23900.0,0.0002844,2]
[368412757,1751167837955,-200.0,0.0002854,2]
[368412758,1751167837963,-464.52,0.00028569,2]
[368412759,1751167837973,-250.0,0.00028569,2]
[368412761,1751167837982,-156.28,0.00028659,2]
[368412763,1751167837992,-150.0,0.00028737,2]
[368412765,1751167838002,-184.42,0.00028745,2]
[368412767,1751167838011,-2060.9,0.0002875,2]
[368412769,1751167838020,-20733.86237594,0.000288,2]
[368412771,1751167838029,-638.44838147,0.00028837,2]
[368412773,1751167838039,-1500.0,0.00028878,30]
[368412774,1751167838048,-1000.0,0.00028937,2]
[368412778,1751167838057,-6912.642,0.00028957,2]
[368412780,1751167838068,-207.4,0.00028957,2]
[368412781,1751167838079,-7168.409754,0.00029012,2]
[368412783,1751167838088,-157.24,0.00029023,2]
[368412785,1751167838097,-157.24,0.00029035,2]
[368412787,1751167838107,-291.24,0.00029036,120]
[368412789,1751167838116,-157.24,0.00029047,2]
[368412791,1751167838125,-157.24,0.00029059,2]
[368412793,1751167838135,-6005.44305909,0.00029067,2]
[368412796,1751167838144,-157.24,0.00029071,2]
[368412798,1751167838154,-157.24,0.00029083,2]
[368412800,1751167838163,-157.24,0.00029095,2]
[368412802,1751167838172,-157.24,0.00029107,2]
[368412803,1751167838181,-1000.0,0.00029113,2]
[368412806,1751167838193,-1000.0,0.00029113,2]
[368412807,1751167838202,-1000.0,0.00029113,2]
[368412809,1751167838211,-1000.0,0.00029113,2]
[368412811,1751167838219,-1000.0,0.00029113,2]
[368412813,1751167838230,-1000.0,0.00029113,2]
[368412815,1751167838239,-1000.0,0.00029113,2]
[368412817,1751167838248,-1000.0,0.00029113,2]
[368412819,1751167838259,-367.26769142,0.00029113,2]
[368412821,1751167838269,-235.49844411,0.00029113,2]
[368412823,1751167838279,-157.24,0.00029119,2]
[368412825,1751167838288,-157.24,0.00029131,2]
[368412827,1751167838297,-157.24,0.00029143,2]
[368412829,1751167838306,-157.24,0.00029156,2]
[368412831,1751167838315,-157.24,0.00029168,2]
[368412833,1751167838324,-355.35,0.00029178,2]
[368412835,1751167838333,-150.0,0.00029178,2]
[368412836,1751167838341,-1200.15,0.0002926,2]
[368412838,1751167838350,-2334.2,0.0002926,2]
[368412840,1751167838359,-455.96,0.0002926,2]
[368412842,1751167838369,-1167.47,0.0002926,2]
[368412844,1751167838378,-1167.1,0.0002926,2]
[368412845,1751167838387,-646.5931719,0.00029434,2]
[368412846,1751167838396,-2219.63945849,0.0002946,2]
[368412847,1751167838405,-4252.40504,0.0002948,2]
[368412848,1751167838414,-166.25,0.0002956,2]
[368412849,1751167838423,-2219.63945841,0.00029585,2]
[368412850,1751167838432,-300.0,0.00029589,2]
[368412851,1751167838441,-2279.2,0.000297,2]
[368412852,1751167838451,-2219.63945841,0.0002971,2]
[368412853,1751167838459,-350.0,0.00029749,2]
[368412854,1751167838469,-582.435,0.0002976,24]
[368412855,1751167838477,-1167.45,0.00029771,2]
[368412856,1751167838487,-200.0,0.00029779,2]
[368412857,1751167838497,-200.0,0.00029779,2]
[368412858,1751167838506,-54498.28122909,0.00029779,2]
[368412931,1751167839830,-3892.7737651,0.00029779,2]
[368412933,1751167839839,-5043.02280377,0.0002978,2]
[368412968,1751167840152,-270.74335929,0.0002978,2]
[368412970,1751167840164,-390.0213377,0.0002978,2]
[368413232,1751167842814,-1641.68376447,0.0002978,2]
[368413469,1751167845740,-363.66593995,0.0002978,2]
[368413494,1751167845962,-4272.90876058,0.0002978,2]
[368413496,1751167845971,-916.20751933,0.0002978,2]
[368413498,1751167845981,-916.20751933,0.00029781,2]
[368413500,1751167845990,-54021.01026081,0.00029795,2]
[368413706,1751168277064,482.14985364,2.09e-05,2]
[368413707,1751168277374,289.28991218,1.21e-06,2]
[368413708,1751168278106,192.85994145,2.21e-06,2]
[368413710,1751168618947,154.01,0.00013699,2]
[368413719,1751169032216,-154.01,0.00023182,2]
[368413720,1751169032227,-206.0,0.00024864,2]
[368413722,1751169032237,-185.0,0.00025291,3]
[368413724,1751169032247,-189.80676817,0.000266,2]
[368413727,1751169032259,-298.1025574,0.000266,2]
[368413731,1751169032295,-272.6827805,0.000266,2]
[368413734,1751169032314,-239.40789393,0.000266,2]
[368413736,1751169032323,-976.43,0.000274,30]
[368413738,1751169032333,-175.4341557,0.000275,9]
[368413741,1751169032352,-800.9958443,0.000275,9]
[368413743,1751169032361,-976.5223274,0.00028,14]
[368413745,1751169032371,-976.43,0.00028,9]
[368413747,1751169032381,-232.99,0.00028739,120]
[368413749,1751169032390,-1000.0,0.0002874,2]
[368413751,1751169032400,-297.7,0.00028755,2]
[368413753,1751169032410,-152.61,0.00028767,2]
[368413755,1751169032419,-250.0,0.00028928,2]
[368413757,1751169032429,-178.05,0.00028996,2]
[368413759,1751169032439,-1200.0,0.00028999,2]
[368413761,1751169032449,-311.465803,0.00029,2]
[368413763,1751169032458,-976.43,0.00029,9]
[368413765,1751169032468,-2369.32,0.00029003,2]
[368413768,1751169032478,-6912.642,0.00029282,2]
[368413769,1751169032487,-207.4,0.00029282,2]
[368413771,1751169032496,-3000.0,0.000293,2]
[368413773,1751169032506,-1000.0,0.000293,2]
[368413775,1751169032516,-152.0,0.00029318,3]
[368413777,1751169032525,-168.0,0.00029325,2]
[368413779,1751169032534,-1492.15928195,0.00029337,2]
[368413781,1751169032544,-3000.0,0.000294,2]
[368413783,1751169032554,-490.0,0.000297,2]
[368413786,1751169032564,-490.0,0.000297,2]
[368413788,1751169032573,-490.0,0.000297,2]
[368413790,1751169032583,-490.0,0.000297,2]
[368413792,1751169032592,-23721.39084911,0.00029795,2]
[368413794,1751169032604,-706.54312195,0.00029795,2]
[368413796,1751169032615,-313.94350589,0.00029795,2]
[368413799,1751169032638,-543.55079184,0.00029795,2]
[368413802,1751169032650,-1029.05617024,0.00029795,2]
[368413804,1751169032662,-378.9,0.00029795,2]
[368413819,1751169032800,-497.54868976,0.00029795,2]
[368413821,1751169032812,-309.94912444,0.00029795,2]
[368414316,1751169037784,-871.96266464,0.00029795,2]
[368414318,1751169037796,-2258.99168339,0.00029795,2]
[368414321,1751169037814,-659.30582725,0.00029795,2]
[368414324,1751169037825,-493.76,0.00029795,2]
[368414329,1751169037868,-637.93039469,0.00029795,2]
[368414331,1751169037879,-1219.22670479,0.00029795,2]
[368414345,1751169037998,-3196.6,0.00029795,2]
[368414347,1751169038010,-46193.42242493,0.00029795,2]
[368414349,1751169038019,-200.0,0.00029795,2]
[368414351,1751169038028,-2000.0,0.00029795,2]
[368414353,1751169038038,-200.0,0.00029795,2]
[368414355,1751169038047,-465.948,0.00029795,24]
[368414357,1751169038056,-200.0,0.00029795,2]
[368414359,1751169038066,-4275.96018,0.00029795,2]
[368414361,1751169038075,-300.0,0.00029795,2]
[368414363,1751169038085,-300.0,0.00029799,2]
[368414365,1751169038094,-151.0,0.00029799,2]
[368414367,1751169038104,-76367.8145492,0.00029806,2]
[368414373,1751169038144,-1000.0,0.00029806,2]
[368414375,1751169038155,-490.7302194,0.00029806,2]
[368414512,1751169039870,-831.99335512,0.00029806,2]
[368414514,1751169039883,-3466.39644205,0.00029806,2]
[368414520,1751169039930,-797.97549436,0.00029806,2]
[368414523,1751169039941,-292.78500013,0.00029806,2]
[368414525,1751169039954,-5569.50842942,0.00029806,2]
[368414527,1751169039965,-274.56351041,0.00029806,2]
[368414531,1751169039996,-21545.10465656,0.00029806,2]
[368414547,1751169040139,-2757.921871,0.00029806,2]
[368414549,1751169040150,-5620.00299894,0.00029806,2]
[368414595,1751169040591,-798.18730772,0.00029806,2]
[368414596,1751169040604,-2141.43721782,0.00029806,2]
[368414597,1751169040690,-794.79791123,0.00029806,2]
[368414751,1751169042966,-205.0,0.00024864,2]
[368414753,1751169042976,-14303.87325037,0.00029806,2]
[368414755,1751169042986,-11982.04596576,0.00029815,2]
[368414757,1751169042995,-8025.81894037,0.00029817,2]
[368414760,1751169043005,-8025.81894037,0.00029818,2]
[368414762,1751169043015,-11982.04596576,0.00029833,2]
[368414763,1751169043024,-62192.22521986,0.00029834,2]
[368414767,1751169043052,-489.29187735,0.00029834,2]
[368414771,1751169043072,-7300.0,0.00029834,2]
[368414773,1751169043084,-1121.31604108,0.00029834,2]
[368414778,1751169043122,-1872.89162855,0.00029834,2]
[368414780,1751169043134,-359.73856219,0.00029834,2]
[368414785,1751169043177,-5122.78766604,0.00029834,2]
[368414787,1751169043187,-101244.38563136,0.00029836,2]
[368415077,1751169045899,-611.97999999,0.00029836,2]
[368415101,1751169046091,-683.97923135,0.00029836,2]
[368415107,1751169046222,-34512.74735103,0.00029836,2]
[368415108,1751169046232,-78458.25099507,0.0002984,2]
[368415109,1751169046241,-916.20751933,0.00029845,2]
[368415110,1751169046250,-15539.13470893,0.00029852,2]
[368415111,1751169046259,-660.87329454,0.00029858,2]
[368415112,1751169046267,-150.0,0.00029862,2]
[368415113,1751169046276,-1000.0,0.00029863,9]
[368415114,1751169046285,-1000.0,0.00029863,9]
[368415115,1751169046294,-1000.0,0.00029863,9]
[368415116,1751169046303,-1000.0,0.00029863,9]
[368415118,1751169046311,-1000.0,0.00029863,9]
[368415120,1751169046320,-1000.0,0.00029863,9]
[368415122,1751169046329,-810.30087774,0.00029863,9]
[368415124,1751169046339,-6.39334257,0.00029863,2]
[368416291,1751169332880,150.0,0.000191,2]
[368416295,1751169609389,154.34,0.00013699,2]
[368416296,1751170004111,-154.34,0.00023973,2]
[368416297,1751170004134,-60.45530396,0.00026241,2]
[368416300,1751170158404,500.0,0.000267,10]
[368416301,1751170167222,500.0,0.000267,10]
[368416302,1751170185656,516.2,0.000267,10]
[368416303,1751170232369,-150.1,0.0002,2]
[368416304,1751170232380,-150.1,0.0002165,2]
[368416306,1751170232389,-107.54469604,0.00026241,2]
[368416308,1751170232398,-168.0,0.00026259,2]
[368416309,1751170232408,-168.0,0.00026629,7]
[368416310,1751170232417,-256.0,0.00026866,2]
[368416311,1751170232427,-187.0,0.00026891,2]
[368416312,1751170232436,-256.0,0.00026958,7]
[368416314,1751170232445,-187.0,0.00027122,2]
[368416316,1751170232454,-187.0,0.00027342,2]
[368416343,1751170232464,-893.097103,0.00027592,2]
[368416345,1751170232770,-617.0,0.00027732,2]
[368416346,1751170232780,-208.99998,0.00027732,2]
[368416347,1751170232789,-187.0,0.00027923,7]
[368416348,1751170232799,-773.0,0.00028,2]
[368416349,1751170232808,-187.0,0.00028198,7]
[368416350,1751170232817,-187.0,0.00028348,2]
[368416351,1751170232827,-166.70484146,0.00028435,2]
[368416352,1751170232838,-40.69515854,0.00028435,2]
[368416353,1751170232847,-166.71,0.00028463,2]
[368416354,1751170232857,-601.39451354,0.000285,2]
[368416355,1751170232865,-31.20032792,0.00028515,120]
[368416356,1751170232877,-173.88967208,0.00028515,120]
[368416357,1751170232887,-172.31,0.00028539,2]
[368416358,1751170232896,-1200.0,0.00028547,2]
[368416360,1751170232905,-187.0,0.00028548,7]
[368416362,1751170232914,-650.77642251,0.00028574,2]
[368416364,1751170232926,-524.2735642,0.00028574,2]
[368416366,1751170232937,-424.95001329,0.00028574,2]
[368416368,1751170232946,-300.0,0.00028574,2]
[368416370,1751170232957,-151.84652241,0.00028575,2]
[368416372,1751170232966,-1422.45975464,0.00028575,2]
[368416376,1751170232994,-577.54024536,0.00028575,2]
[368416378,1751170233003,-2000.0,0.00028575,2]
[368416380,1751170233013,-2000.0,0.00028575,2]
[368416382,1751170233022,-2000.0,0.00028575,2]
[368416384,1751170233031,-2000.0,0.00028575,2]
[368416386,1751170233040,-2000.0,0.00028575,2]
[368416388,1751170233050,-2000.0,0.00028575,2]
[368416390,1751170233059,-1000.0,0.00028575,2]
[368416392,1751170233069,-23900.0,0.00028592,2]
[368416394,1751170233079,-1500.0,0.00028619,120]
[368416396,1751170233088,-258.66,0.00028711,2]
[368416398,1751170233098,-1000.0,0.00028749,2]
[368416400,1751170233109,-666.0,0.00028832,2]
[368416403,1751170233119,-792.48,0.00028904,2]
[368416406,1751170233129,-179.8,0.00028908,2]
[368416409,1751170233139,-250.0,0.00028942,2]
[368416412,1751170233148,-700.47,0.00028965,2]
[368416414,1751170233158,-180.250152,0.00028967,8]
[368416417,1751170233168,-773.0,0.00029,4]
[368416420,1751170233179,-773.0,0.00029,2]
[368416423,1751170233189,-199.02,0.00029178,2]
[368416426,1751170233199,-256.0,0.00029456,2]
[368416429,1751170233208,-689.917,0.00029593,2]
[368416431,1751170233217,-256.0,0.00029675,2]
[368416433,1751170233227,-187.0,0.00029772,2]
[368416435,1751170233237,-375.494,0.00029784,24]
[368416437,1751170233246,-250.0,0.00029788,2]
[368416439,1751170233256,-285.4227996,0.00029789,2]
[368416441,1751170233265,-5418.01345646,0.0002979,2]
[368416443,1751170233275,-1000.0,0.000298,2]
[368416445,1751170233285,-1000.0,0.000298,2]
[368416447,1751170233294,-1000.0,0.000298,2]
[368416449,1751170233303,-617.93,0.000298,2]
[368416451,1751170233313,-1000.0,0.000298,2]
[368416453,1751170233322,-555.52519,0.000298,2]
[368416455,1751170233332,-215.0738,0.00029804,2]
[368416457,1751170233341,-285.4227996,0.00029815,2]
[368416459,1751170233351,-285.4227996,0.00029822,2]
[368416461,1751170233360,-285.4227996,0.00029837,2]
[368416463,1751170233369,-484.9395291,0.00029843,2]
[368416465,1751170233379,-484.9395291,0.00029854,2]
[368416467,1751170233388,-2968.8979596,0.00029855,2]
[368416469,1751170233398,-167.28,0.00029859,2]
[368416471,1751170233408,-200.0,0.00029863,2]
[368416473,1751170233417,-200.0,0.00029863,2]
[368416475,1751170233426,-151.0,0.00029863,2]
[368416477,1751170233436,-254.49464107,0.00029863,2]
[368416479,1751170233446,-150.0,0.00029863,2]
[368416481,1751170233456,-150.0,0.00029863,2]
[368416483,1751170233465,-150.0,0.00029863,2]
[368416485,1751170233476,-150.0,0.00029863,2]
[368416487,1751170233488,-572.0,0.00029863,2]
[368416489,1751170233497,-153.57796025,0.00029863,2]
[368416491,1751170233506,-500.0,0.00029863,2]
[368416493,1751170233516,-150.0,0.00029863,2]
[368416495,1751170233525,-1000.0,0.00029863,7]
[368416497,1751170233535,-1000.0,0.00029863,7]
[368416499,1751170233544,-1000.0,0.00029863,7]
[368416501,1751170233554,-1000.0,0.00029863,7]
[368416503,1751170233563,-1000.0,0.00029863,7]
[368416505,1751170233572,-1000.0,0.00029863,7]
[368416507,1751170233581,-1000.0,0.00029863,7]
[368416509,1751170233591,-1000.0,0.00029863,7]
[368416511,1751170233600,-1000.0,0.00029863,7]
[368416513,1751170233610,-1000.0,0.00029863,7]
[368416515,1751170233620,-166.46,0.00029864,2]
[368416517,1751170233631,-150.0,0.00029876,2]
[368416519,1751170233640,-8025.81894037,0.00029883,2]
[368416521,1751170233650,-660.87329454,0.00029885,2]
[368416523,1751170233659,-207.18689673,0.00029885,2]
[368416525,1751170233669,-150.0,0.00029885,2]
[368416527,1751170233678,-150.0,0.00029887,2]
[368416529,1751170233687,-916.20751933,0.00029889,2]
[368416531,1751170233697,-207.18689673,0.00029889,2]
[368416533,1751170233707,-150.0,0.0002989,2]
[368416536,1751170233717,-150.0,0.00029894,2]
[368416538,1751170233727,-150.0,0.00029894,2]
[368416540,1751170233736,-150.0,0.00029895,2]
[368416542,1751170233746,-8025.81894037,0.00029895,2]
[368416544,1751170233756,-2608.46553783,0.000299,2]
[368416546,1751170233765,-2500.0,0.000299,2]
[368416548,1751170233775,-305.33,0.000299,2]
[368416550,1751170233784,-442.5933,0.000299,2]
[368416552,1751170233793,-181.9897525,0.000299,2]
[368416554,1751170233803,-214.87620508,0.000299,2]
[368416556,1751170233812,-6226.23871695,0.00029901,2]
[368416558,1751170233828,-16698.8698353,0.00029901,2]
[368416561,1751170233839,-931.80899148,0.00029901,2]
[368416563,1751170233851,-12318.24570567,0.00029901,2]
[368416566,1751170233869,-400.28254252,0.00029901,2]
[368416984,1751170238001,-1268.25869546,0.0002956,2]
[368416987,1751170238013,-1201.52476251,0.0002956,2]
[368416989,1751170238025,-1093.51669203,0.0002956,2]
[368416991,1751170238037,-871.7875822,0.00029901,2]
[368416993,1751170238049,-1722.45027064,0.00029901,2]
[368416996,1751170238060,-256.8745783,0.00029901,2]
[368417206,1751170240193,-1066.30449706,0.00029901,2]
[368417388,1751170243136,-150.11,0.00022,2]
[368417390,1751170243146,-150.11,0.00024523,2]
[368417392,1751170243156,-14610.92948408,0.00029901,2]
[368417394,1751170243168,-19775.70500233,0.00029901,2]
[368417396,1751170243179,-758.14934782,0.00029901,2]
[368417686,1751170246205,-2397.01550433,0.00029901,2]
[368417688,1751170246216,-301.50882555,0.00029901,2]
[368419522,1751170603995,155.04,0.00013699,2]
[368419523,1751170641269,9902.81416884,0.00026699,10]
[368419524,1751170763848,4146.0,0.00022,30]
[368419528,1751170798025,202.56,0.00027397,120]
[368419529,1751170885886,-1200.0,0.00021999,2]
[368419530,1751170885912,-1046.25,0.00022,5]
[368419531,1751170885939,-1500.0,0.00022,2]
[368419532,1751170885964,-10000.0,0.00022,2]
[368419533,1751171277827,1006.67162361,0.0002,4]
[368419543,1751171432573,-1116.24984188,0.00023,2]
[368419557,1751171432863,-8883.75015812,0.00023,2]
[368419558,1751171432872,-300.0,0.00023771,2]
[368419559,1751171432882,-194.17299946,0.00023772,2]
[368419560,1751171432891,-306.0,0.00023872,2]
[368419561,1751171432900,-155.04,0.00023973,2]
[368419562,1751171432909,-12023.55699206,0.00024,2]
[368419563,1751171432919,-992.43254997,0.00024,2]
[368419564,1751171432928,-5000.00997811,0.00024,5]
[368419565,1751171432938,-1500.0,0.000242,2]
[368419566,1751171432947,-5003.98738648,0.0002465,2]
[368419567,1751171432956,-512.0,0.00024732,2]
[368419568,1751171432965,-152.0,0.00025048,3]
[368419569,1751171432975,-1500.0,0.000253,2]
[368419570,1751171432985,-152.0,0.00026319,4]
[368419571,1751171432994,-1500.0,0.0002637,2]
[368419572,1751171433005,-168.0,0.00026723,2]
[368419573,1751171433014,-168.0,0.00026995,7]
[368419574,1751171433023,-168.0,0.00027052,2]
[368419575,1751171433032,-168.0,0.00027303,2]
[368419576,1751171433042,-152.0,0.00027591,5]
[368419577,1751171433051,-538.51828797,0.00028069,2]
[368419578,1751171433062,-168.0,0.00028395,2]
[368419579,1751171433071,-207.4,0.00028435,2]
[368419580,1751171433080,-6912.642,0.00028435,2]
[368419581,1751171433090,-520.9989149,0.0002849,2]
[368419582,1751171433099,-130.42391927,0.00028628,2]
[368419583,1751171433111,-118.09608073,0.00028628,2]
[368419584,1751171433121,-538.51828796,0.00028682,2]
[368419585,1751171433130,-225.2,0.00028689,120]
[368419586,1751171433140,-209.06,0.00028723,2]
[368419587,1751171433149,-500.0,0.00028765,2]
[368419588,1751171433159,-500.0,0.00028765,2]
[368419589,1751171433168,-500.0,0.00028765,2]
[368419590,1751171433179,-500.0,0.00028765,2]
[368419591,1751171433189,-500.0,0.00028765,2]
[368419592,1751171433199,-500.0,0.00028765,2]
[368419593,1751171433208,-500.0,0.00028765,2]
[368419594,1751171433218,-500.0,0.00028765,2]
[368419595,1751171433228,-500.0,0.00028765,2]
[368419596,1751171433244,-500.0,0.00028765,2]
[368419597,1751171433254,-2252.27655712,0.00028783,2]
[368419598,1751171433279,-374.77445392,0.00028783,2]
[368419600,1751171438268,-20440.17898896,0.00028783,2]
[368419601,1751171438278,-168.0,0.00028822,2]
[368419602,1751171438291,-152.0,0.00028863,6]
[368419603,1751171438301,-1000.0,0.00028887,2]
[368419604,1751171438312,-666.0,0.00028928,2]
[368419605,1751171438323,-250.0,0.00028929,2]
[368419606,1751171438333,-560.37,0.00028929,2]
[368419607,1751171438343,-179.59,0.00028934,2]
[368419608,1751171438354,-174.41,0.00028978,2]
[368419609,1751171438364,-7372.47,0.00029,2]
[368419610,1751171438378,-7372.47,0.00029,2]
[368419611,1751171438389,-7372.47,0.000291,2]
[368419612,1751171438399,-799.39,0.00029174,2]
[368419613,1751171438409,-7372.47,0.000292,2]
[368419614,1751171438420,-7372.47,0.000293,2]
[368419615,1751171438431,-250.0,0.00029694,2]
[368419616,1751171438443,-300.0,0.00029694,120]
[368419617,1751171438454,-8851.50944032,0.00029783,2]
[368419618,1751171438465,-1319.12041017,0.00029791,2]
[368419621,1751171438883,-200.0,0.00029793,2]
[368419623,1751171438893,-250.0,0.00029796,2]
[368419625,1751171438903,-300.0,0.00029796,120]
[368419626,1751171438912,-2911.96064764,0.00029797,2]
[368419627,1751171438921,-280.25390108,0.00029798,2]
[368419629,1751171438930,-12588.0,0.000298,2]
[368419631,1751171438939,-215.0738,0.00029804,2]
[368419633,1751171438950,-431.422,0.00029815,24]
[368419635,1751171438959,-200.0,0.00029818,2]
[368419637,1751171438968,-280.25390098,0.00029818,2]
[368419639,1751171438977,-200.0,0.00029821,2]
[368419641,1751171438987,-275.13992402,0.00029828,2]
[368419643,1751171438996,-280.25390098,0.00029837,2]
[368419645,1751171439005,-200.0,0.00029839,2]
[368419647,1751171439015,-200.0,0.00029842,2]
[368419649,1751171439024,-8851.50944032,0.00029843,2]
[368419651,1751171439033,-166.46,0.00029854,2]
[368419653,1751171439043,-275.13992402,0.00029856,2]
[368419655,1751171439053,-280.25390098,0.00029857,2]
[368419658,1751171439062,-1116.8126,0.00029859,2]
[368419660,1751171439071,-462.48,0.00029863,2]
[368419661,1751171439081,-1319.12041017,0.00029866,2]
[368419664,1751171439090,-150.0,0.00029867,2]
[368419666,1751171439099,-200.0,0.0002987,2]
[368419667,1751171439108,-280.25390098,0.00029877,2]
[368419669,1751171439117,-2911.96064764,0.00029878,2]